{"text_format":"3","workbook":"xlsx","n_sheets":4,"sheets":["Anbudsformulär","Diagramdata","Kostnadsfördelning","Sammanfattning av anbudskost..."],"not_rendered":{"charts":1,"images":2,"defined_names":11},"read":"whole","date_system":"1900"}

{"sheet":"Anbudsformulär","index":0,"n_rows":21,"n_cols":6,"rows_kept":21,"merged":[[0,1,0,4],[1,1,1,2],[7,1,8,1],[7,2,8,2],[10,1,10,5],[12,1,12,5],[14,1,14,5],[15,1,15,2],[15,4,15,5],[16,1,16,2],[16,4,16,5],[18,1,18,5],[19,1,19,2],[19,4,19,5],[20,1,20,2],[20,4,20,5]]}
[null,"Anbudsformulär för byggnadsarbete"]
[null,"Information om ägare",null,null,"Information om entreprenör"]
[null,"Namn","Ange ägarens namn i den här cellen",null,"Företag","Ange entreprenörens företagsnamn i den här cellen"]
[null,"Adress","Ange ägarens adress i den här cellen",null,"Namn","Ange entreprenörens namn i den här cellen"]
[null,"Ort, postnummer","Ange ägarens postnummer och ort i den här cellen",null,"Adress","Ange entreprenörens adress i den här cellen"]
[null,"Telefon","Ange ägarens telefonnummer i den här cellen",null,"Ort, postnummer","Ange entreprenörens postnummer och ort i den här cellen"]
[null,"E-post","Ange ägarens e-postadress i den här cellen",null,"Telefon","Ange entreprenörens telefonnummer i den här cellen"]
[null,"Projektnamn","Ange projektnamn i den här cellen",null,"E-post","Ange entreprenörens e-postadress i den här cellen "]
[{"$nulls":4},"Slutdatum","Ange slutdatum i den här cellen"]
[null,"Arbetets omfattning"]
[null,"Projektets omfattning anges här. Skriv in alla specifikationer du vill ha. \n\nExempeltext: Det här kommer att vara ett fiktivt projekt för att bygga en stor trappa. Vi kommer endast att använda 2x4 och 2x8 virke samt bjälklagsfästen för att bygga ramen. Trappsteg kommer att kapas ut från 2x4-materialet. Skruvar på minst 2\" kommer att användas.  Alla spikar ska vara minst 10 penny. Konstruktionsvikten ska hålla minst 500 pund per steg. Trapporna kommer att ligga i nivå med husets. Ett insteg kommer att fästas på huset. Entreprenören kommer att ta hand om uppstädningen."]
[null,"Inte inkluderat"]
[null,"Projektdetaljer som inte är inkluderade framgår här. Skriv in allt som inte ingår i detta anbud. \n\nExempeltext: Inga räcken kommer att installeras. Marken ska förberedas av ägaren. Trappsteg ska målas av ägaren."]
[null,"Företagets anbudsförslag"]
[null,"Företagets anbudsförslag anges här. Skriv en översikt över anbudsförslaget, inklusive vem som erbjuder arbetet, förväntat slutdatum samt anbudsförslagets belopp.\n\nExempeltext: Vi, Företagets namn, erbjuder ovanstående arbete som ska vara slutfört senast den Slutdatum till ett belopp på Totalbelopp."]
[]
[null,"Inlämnat av (Företagsrepresentant)",null,null,"Datum"]
[null,"Ägarens godkännande"]
[null,"Ägarens godkännande anges här. Skriv in ägarens namn i ett bekräftelseutlåtande som innehåller datum för slutförandet och det totala belopp som anges i företagets anbudsförslag. \n\nExempeltext: Jag, Ägarens namn, godkänner ovanstående arbetsomfattning, som ska vara slutfört senast den Slutdatum, till ett belopp av Totalbelopp."]
[]
[null,"Inlämnat av (husägare eller auktoriserad representant)",null,null,"Datum"]

{"sheet":"Diagramdata","index":1,"n_rows":7,"n_cols":3,"rows_kept":7,"hidden":true}
[]
[null,null,"Summa"]
[null,{"$f":"INDEX(Anbudsposter[#Data],MATCH(1,Anbudsposter[Kostnader rangordnade],0),2)","v":"Arbetsgivaravgifter"},{"$f":"INDEX(Anbudsposter[#Data],MATCH(1,Anbudsposter[Kostnader rangordnade],0),4)","v":200}]
[null,{"$f":"INDEX(Anbudsposter[#Data],MATCH(2,Anbudsposter[Kostnader rangordnade],0),2)","v":"2x4x10 virke"},{"$f":"INDEX(Anbudsposter[#Data],MATCH(2,Anbudsposter[Kostnader rangordnade],0),4)","v":99.39999999999999}]
[null,{"$f":"INDEX(Anbudsposter[#Data],MATCH(3,Anbudsposter[Kostnader rangordnade],0),2)","v":"Bjälklagsfästen"},{"$f":"INDEX(Anbudsposter[#Data],MATCH(3,Anbudsposter[Kostnader rangordnade],0),4)","v":74.7}]
[null,{"$f":"INDEX(Anbudsposter[#Data],MATCH(4,Anbudsposter[Kostnader rangordnade],0),2)","v":"2x8x10 virke"},{"$f":"INDEX(Anbudsposter[#Data],MATCH(4,Anbudsposter[Kostnader rangordnade],0),4)","v":33.75}]
[null,{"$f":"INDEX(Anbudsposter[#Data],MATCH(5,Anbudsposter[Kostnader rangordnade],0),2)","v":"Handskar, läder"},{"$f":"INDEX(Anbudsposter[#Data],MATCH(5,Anbudsposter[Kostnader rangordnade],0),4)","v":15.5}]

{"sheet":"Kostnadsfördelning","index":2,"n_rows":14,"n_cols":6,"rows_kept":14,"merged":[[0,1,0,4],[1,1,1,4]]}
[null,"Kostnadsfördelning",{"$nulls":3}," "]
[null,"Förteckning över material och kostnader"]
[null,"Antal","Beskrivning","Kostnad","Summa","Kostnader rangordnade"]
[null,5,"2x8x10 virke",{"v":6.75,"d":"6.75 kr"},{"$f":"IFERROR(Anbudsposter[[#This Row],[Kostnad]]*Anbudsposter[[#This Row],[Antal]], \"\")","v":{"v":33.75,"d":"33.75 kr"}},{"$f":"_xlfn.RANK.EQ(Anbudsposter[[#This Row],[Summa]],Anbudsposter[Summa])","v":4}]
[null,20,"2x4x10 virke",{"v":4.97,"d":"4.97 kr"},{"$f":"IFERROR(Anbudsposter[[#This Row],[Kostnad]]*Anbudsposter[[#This Row],[Antal]], \"\")","v":{"v":99.39999999999999,"d":"99.40 kr"}},{"$f":"_xlfn.RANK.EQ(Anbudsposter[[#This Row],[Summa]],Anbudsposter[Summa])","v":2}]
[null,30,"Bjälklagsfästen",{"v":2.49,"d":"2.49 kr"},{"$f":"IFERROR(Anbudsposter[[#This Row],[Kostnad]]*Anbudsposter[[#This Row],[Antal]], \"\")","v":{"v":74.7,"d":"74.70 kr"}},{"$f":"_xlfn.RANK.EQ(Anbudsposter[[#This Row],[Summa]],Anbudsposter[Summa])","v":3}]
[null,2,"Kartong med skruvar, 2 tum",{"v":6.67,"d":"6.67 kr"},{"$f":"IFERROR(Anbudsposter[[#This Row],[Kostnad]]*Anbudsposter[[#This Row],[Antal]], \"\")","v":{"v":13.34,"d":"13.34 kr"}},{"$f":"_xlfn.RANK.EQ(Anbudsposter[[#This Row],[Summa]],Anbudsposter[Summa])","v":6}]
[null,2,"Kartong med spikar, 10 penny",{"v":3.25,"d":"3.25 kr"},{"$f":"IFERROR(Anbudsposter[[#This Row],[Kostnad]]*Anbudsposter[[#This Row],[Antal]], \"\")","v":{"v":6.5,"d":"6.50 kr"}},{"$f":"_xlfn.RANK.EQ(Anbudsposter[[#This Row],[Summa]],Anbudsposter[Summa])","v":7}]
[null,2,"Handskar, läder",{"v":7.75,"d":"7.75 kr"},{"$f":"IFERROR(Anbudsposter[[#This Row],[Kostnad]]*Anbudsposter[[#This Row],[Antal]], \"\")","v":{"v":15.5,"d":"15.50 kr"}},{"$f":"_xlfn.RANK.EQ(Anbudsposter[[#This Row],[Summa]],Anbudsposter[Summa])","v":5}]
[null,2,"Arbetsgivaravgifter",{"v":100,"d":"100.00 kr"},{"$f":"IFERROR(Anbudsposter[[#This Row],[Kostnad]]*Anbudsposter[[#This Row],[Antal]], \"\")","v":{"v":200,"d":"200.00 kr"}},{"$f":"_xlfn.RANK.EQ(Anbudsposter[[#This Row],[Summa]],Anbudsposter[Summa])","v":1}]
[4,null,null,"Delsumma",{"$f":"SUBTOTAL(109,Anbudsposter[Summa])","v":{"v":443.18999999999994,"d":"443.19 kr"}}]
[5,null,null,"Skattesats",{"v":0.075,"d":"7.50%"}]
[{"$nulls":3},"Skatt",{"$f":"IFERROR(Skattesats*Anbudsposter[[#Totals],[Summa]], \"\")","v":{"v":33.23924999999999,"d":"33.24 kr"}}]
[{"$nulls":3},"Totalsumma",{"$f":"IFERROR(Skatt+Anbudsposter[[#Totals],[Summa]], \"\")","v":{"v":476.4292499999999,"d":"476.43 kr"}}]

{"sheet":"Sammanfattning av anbudskost...","index":3,"n_rows":3,"n_cols":4,"rows_kept":3}
[null,"Sammanfattning av anbudskostnader"]
[null,"Redovisning av material och kostnader",null,"Anteckningar"]
[null,"Cirkeldiagram som visar de fem största kostnaderna per material. Uppgifterna är baserade på tabellen över anbudsposter i kalkylbladet Kostnadsfördelning.",null,"Ange anteckningar i den här cellen."]